bitfinex-derivatives/quotes_SOLF0:USTF0_20250131
["timestamp","ask_amount","ask_price","bid_price","bid_amount"]
[1738335914949,0.02960117,237.94,237.73,116.85086667]
[1738335914950,18.30246616,237.94,237.75,18.30246616]
[1738335915144,4.2045,237.83,237.75,22.50826616]
[1738335915349,2.9206,237.93,237.75,18.30246616]
[1738335915753,4.2035,237.89,237.82,4.2046]
[1738335915950,0.02737909,237.86,237.82,0.02975606]
[1738335916245,4.23127909,237.86,237.82,0.02975606]
[1738335916546,2.86737909,237.86,237.71,18.30246616]
[1738335916747,18.30246616,237.85,237.72,4.2063]
[1738335916953,18.30246616,237.81,237.66,116.85086667]
[1738335917152,2.7062,237.8,237.63,18.30246616]
[1738335917348,18.30246616,237.77,237.6,116.85086667]
[1738335917556,4.2066,237.71,237.6,116.85086667]
[1738335917749,4.23312963,237.71,237.66,0.02651755]
[1738335917942,0.02652963,237.71,237.66,0.02651755]
[1738335918651,4.2077,237.65,237.6,116.85086667]
[1738335918850,0.02652963,237.71,237.6,116.85086667]
[1738335919155,18.30246616,237.73,237.55,18.30246616]
[1738335919347,18.30246616,237.73,237.51,135.15333283]
[1738335919849,0.03102977,237.65,237.6,0.02823134]
[1738335921055,0.03102977,237.65,237.6,4.23663134]
[1738335921751,0.03102977,237.65,237.62,4.2081]
[1738335922655,0.03102977,237.65,237.6,0.02823134]
[1738335923754,0.03102977,237.65,237.62,4.2081]
[1738335924355,0.03102977,237.65,237.6,4.23663134]
[1738335924667,0.03102977,237.65,237.6,0.02823134]
[1738335924856,0.03102977,237.65,237.63,4.2079]
[1738335925357,0.03102977,237.65,237.6,0.02823134]
[1738335926655,0.03102977,237.65,237.61,4.2083]
[1738335927052,18.30246616,237.85,237.62,18.30246616]
[1738335927358,2.776,237.83,237.66,18.30246616]
[1738335927657,4.2055,237.77,237.71,4.2064]
[1738335927951,18.30246616,237.81,237.62,18.30246616]
[1738335928159,4.2065,237.72,237.63,4.208]
[1738335928451,1.3431,237.71,237.69,0.02808752]
[1738335928651,2.776,237.71,237.51,135.15333283]
[1738335928857,18.30246616,237.69,237.51,135.15333283]
[1738335929448,2.776,237.71,237.51,135.15333283]
[1738335929651,2.776,237.71,237.55,18.30246616]
[1738335929853,0.02876058,237.63,237.59,0.02861873]
[1738335930457,4.2085,237.61,237.59,0.02861873]
[1738335930653,0.02876058,237.63,237.59,0.02861873]
[1738335931158,0.02876058,237.63,237.48,18.30246616]
[1738335931548,4.2087,237.59,237.44,18.30246616]
[1738335931752,1.3676,237.58,237.52,4.2098]
[1738335931948,1.3676,237.58,237.44,18.30246616]
[1738335932150,1.3676,237.58,237.48,18.30246616]
[1738335932558,0.03003781,237.53,237.49,0.03182415]
[1738335932858,0.03003781,237.53,237.52,4.2099]
[1738335934661,0.03003781,237.53,237.49,0.03182415]
[1738335934662,0.03003781,237.53,237.5,4.2101]
[1738335935457,0.03003781,237.53,237.49,0.03182415]
[1738335937562,0.03003781,237.53,237.49,4.24212415]
[1738335937862,0.03003781,237.53,237.49,0.03182415]
[1738335939261,0.03003781,237.53,237.52,4.2099]
[1738335939465,2.84,237.62,237.51,18.30246616]
[1738335940761,0.02846317,237.59,237.54,0.03203123]
[1738335941161,4.23726317,237.59,237.54,0.03203123]
[1738335941365,0.02846317,237.59,237.54,0.03203123]
[1738335941858,4.2092,237.56,237.54,0.03203123]
[1738335942064,0.02846317,237.59,237.42,18.30246616]
[1738335942364,4.2096,237.54,237.42,18.30246616]
[1738335942566,21.14246616,237.62,237.42,18.30246616]
[1738335943364,0.02844684,237.54,237.5,0.02887846]
[1738335944155,0.02844684,237.54,237.36,18.30246616]
[1738335944360,2.7482,237.57,237.36,18.30246616]
[1738335945165,4.2099,237.52,237.36,18.30246616]
[1738335945361,2.7482,237.57,237.44,0.02759757]
[1738335945662,0.02979628,237.49,237.44,0.02759757]
[1738335946062,0.02979628,237.49,237.48,4.2106]
[1738335947060,6.9573,237.57,237.47,11.48683782]
[1738335947061,1.397,237.57,237.47,11.48683782]
[1738335947262,1.397,237.57,237.44,0.02759757]
[1738335947263,1.3497,237.64,237.54,11.48683782]
[1738335947463,1.3497,237.64,237.57,11.48683782]
[1738335947664,1.3497,237.64,237.59,4.2086]
[1738335948368,0.0306127,237.64,237.59,0.03221886]
[1738335949362,0.0306127,237.64,237.63,4.208]
[1738335949873,1.376,237.75,237.67,4.2072]
[1738335950570,1.376,237.75,237.64,18.36084303]
[1738335950870,2.7315,237.79,237.64,18.36084303]
[1738335951065,0.0295851,237.72,237.7,4.2066]
[1738335951471,2.7315,237.79,237.72,4.2063]
[1738335951771,0.03036728,237.73,237.72,4.2063]
[1738335951967,2.7315,237.79,237.69,0.02944253]
[1738335952167,0.03048975,237.75,237.73,4.2062]
[1738335953270,0.03048975,237.75,237.69,116.8803092]
[1738335953869,0.03048975,237.75,237.69,0.02944253]
[1738335954167,0.03048975,237.75,237.69,4.23624253]
[1738335954373,0.03048975,237.75,237.69,0.02944253]
[1738335956272,0.03048975,237.75,237.72,18.36084303]
[1738335956474,0.03048975,237.75,237.74,4.206]
[1738335957573,0.03048975,237.75,237.72,4.2063]
[1738335957769,0.03048975,237.75,237.69,0.02944253]
[1738335957969,0.03048975,237.75,237.7,23.57877698]
[1738335958165,1.3803,237.83,237.7,23.57877698]
[1738335958773,4.2055,237.77,237.66,116.85086667]
[1738335959077,1.3803,237.83,237.66,116.85086667]
[1738335959373,0.02863545,237.74,237.69,0.03042628]
[1738335963278,0.02863545,237.74,237.73,4.2062]
[1738335965983,0.02863545,237.74,237.69,0.03042628]
[1738335966281,4.2067,237.7,237.69,0.03042628]
[1738335967581,0.02863545,237.74,237.6,116.85086667]
[1738335967779,2.84,237.76,237.64,4.2078]
[1738335967780,4.2067,237.71,237.64,4.2078]
[1738335967982,1.3784,237.73,237.6,135.2117097]
[1738335968378,1.3784,237.73,237.67,4.2072]
[1738335968883,0.02713226,237.72,237.68,0.03165318]
[1738335969079,4.23353226,237.72,237.68,0.03165318]
[1738335970181,0.02713226,237.72,237.68,0.03165318]
[1738335970384,0.02713226,237.72,237.68,18.39249621]
[1738335970778,2.84,237.84,237.68,18.39249621]
[1738335970978,2.84,237.84,237.72,18.36084303]
[1738335971177,7.0444,237.84,237.76,4.2056]
[1738335971685,2.84,237.84,237.72,18.36084303]
[1738335971983,0.02952016,237.82,237.77,0.02866003]
[1738335975382,0.02952016,237.82,237.79,4.205]
[1738335975578,0.02952016,237.82,237.77,0.02866003]
[1738335976086,0.02952016,237.82,237.81,4.2048]
[1738335976277,1.3793,237.91,237.8,18.36084303]
[1738335976887,5.629,237.99,237.8,18.36084303]
[1738335977080,1.3793,237.98,237.8,18.36084303]
[1738335977482,0.02718835,237.89,237.84,0.03136211]
[1738335978385,0.02718835,237.89,237.86,4.2039]
[1738335978788,0.02718835,237.89,237.84,0.03136211]
[1738335979481,4.2041,237.85,237.84,0.03136211]
[1738335980082,1.4261,237.88,237.77,4.2055]
[1738335980289,19.78694303,237.88,237.69,116.85086667]
[1738335980492,1.3859,237.87,237.69,116.85086667]
[1738335980692,27.01295583,237.93,237.72,18.36084303]
[1738335980887,2.8165,238.06,237.86,18.36084303]
[1738335981089,0.76031137,238.05,237.86,18.36084303]
[1738335981490,0.03214253,237.98,237.93,0.03116978]
[1738335985188,0.03214253,237.98,237.97,4.202]
[1738335985388,0.03214253,237.98,237.93,0.03116978]
[1738335985887,4.23394253,237.98,237.93,0.03116978]
[1738335986393,4.2021,237.96,237.93,0.03116978]
[1738335986597,0.03214253,237.98,237.85,116.85086667]
[1738335986796,5.6596,237.95,237.85,116.85086667]
[1738335987094,1.4556,238.06,237.86,18.36084303]
[1738335987095,18.36084303,238.04,237.86,18.36084303]
[1738335987593,18.36084303,238.04,237.93,4.2027]
[1738335987792,0.0296478,237.97,237.93,0.02855612]
[1738335988697,0.0296478,237.97,237.93,4.23105612]
[1738335988894,0.0296478,237.97,237.93,0.02855612]
[1738335989095,0.0296478,237.97,237.95,18.36084303]
[1738335989298,1.4571,238.05,237.95,18.36084303]
[1738335989597,2.84,238.13,237.95,18.36084303]
[1738335989799,1.4425,238.12,237.95,18.36084303]
[1738335990397,1.4425,238.12,237.99,18.36084303]
[1738335990598,0.03047752,238.05,238.03,4.2008]
[1738335990798,0.03047752,238.05,238.0,0.0267341]
[1738335991696,4.2011,238.02,238.0,0.0267341]
[1738335991996,0.03047752,238.05,237.94,18.36084303]
[1738335992191,4.2002,238.08,238.01,4.2012]
[1738335992394,1.43,238.09,237.94,18.36084303]
[1738335992598,1.43,238.09,237.98,18.36084303]
[1738335992999,1.43,238.09,238.04,4.2006]
[1738335993301,0.03073534,238.06,238.01,0.02654296]
[1738335993899,0.03073534,238.06,238.05,4.2005]
[1738335994799,0.03073534,238.06,238.03,4.2007]
[1738335995302,0.03073534,238.06,238.01,0.02654296]
[1738335995500,0.03073534,238.06,238.02,4.201]
[1738335995703,0.03073534,238.06,238.01,0.02654296]
[1738335999907,4.2006,238.05,238.01,0.02654296]
[1738336001815,0.03073534,238.06,238.01,0.02654296]
[1738336002203,0.03073534,238.06,238.03,4.2009]
[1738336002405,0.03073534,238.06,238.01,0.02654296]
[1738336003106,4.2011,238.02,238.01,0.02654296]
[1738336003611,1.4433,238.05,237.94,4.2023]
[1738336004509,1.4433,238.05,237.9,18.36084303]
[1738336004711,0.02839757,238.02,237.97,0.03087274]
[1738336005713,4.2015,238.0,237.97,0.03087274]
[1738336005904,0.02839757,238.02,237.97,0.03087274]
[1738336006800,4.2015,238.0,237.97,0.03087274]
[1738336007104,0.02839757,238.02,237.97,0.03087274]
[1738336008009,4.2016,237.99,237.97,0.03087274]
[1738336008208,0.02839757,238.02,237.97,0.03087274]
[1738336011112,4.2018,237.98,237.97,0.03087274]
[1738336011312,21.10964303,238.01,237.9,116.85086667]
[1738336011812,4.2024,237.95,237.9,116.85086667]
[1738336012205,21.10964303,238.01,237.9,116.85086667]
[1738336012404,0.02663637,237.95,237.9,114.68421405]
[1738336012806,4.2027,237.93,237.9,114.68421405]
[1738336013210,0.02663637,237.95,237.9,114.68421405]
[1738336013410,0.02663637,237.95,237.9,0.03034738]
[1738336013611,4.2025,237.94,237.9,0.03034738]
[1738336014605,0.02663637,237.95,237.9,0.03034738]
[1738336015412,4.22893637,237.95,237.9,4.23354738]
[1738336016215,0.02663637,237.95,237.9,4.23354738]
[1738336016410,0.02663637,237.95,237.9,0.03034738]
[1738336017015,4.203,237.91,237.9,0.03034738]
[1738336017215,0.02663637,237.95,237.9,0.03034738]
[1738336017615,4.203,237.91,237.9,0.03034738]
[1738336017812,0.02663637,237.95,237.85,4.2041]
[1738336018305,4.2034,237.89,237.85,4.2041]
[1738336018510,18.36084303,237.93,237.79,23.55222966]
[1738336018718,18.36084303,237.93,237.78,145.19506919]
[1738336018719,18.36084303,237.93,237.77,82.35887654]
[1738336019015,0.03015361,237.88,237.84,0.02755313]
[1738336019216,4.2039,237.86,237.84,0.02755313]
[1738336019814,4.2041,237.85,237.84,0.02755313]
[1738336020018,0.02910515,237.88,237.84,0.02755313]
[1738336020315,0.02910515,237.88,237.7,168.74729885]
[1738336020511,18.36084303,237.85,237.74,4.2058]
[1738336020716,18.36084303,237.81,237.7,168.74729885]
[1738336020917,4.2064,237.72,237.7,168.74729885]
[1738336021116,18.36084303,237.77,237.7,168.74729885]
[1738336021318,1.3991,237.76,237.7,168.74729885]
[1738336021511,4.2062,237.73,237.71,0.0265747]
[1738336021714,1.43013272,237.76,237.7,168.74729885]
[1738336021913,18.36084303,237.73,237.61,116.62328859]
[1738336022318,4.2071,237.68,237.61,116.62328859]
[1738336022519,1.4608,237.75,237.61,116.62328859]
[1738336023017,0.02769842,237.7,237.66,0.02667129]
[1738336025416,4.2069,237.69,237.66,0.02667129]
[1738336026421,0.02769842,237.7,237.67,4.2072]
[1738336026720,0.02769842,237.7,237.66,0.02667129]
[1738336027921,0.02769842,237.7,237.67,4.2071]
[1738336028116,0.02769842,237.7,237.66,0.02667129]
[1738336029523,0.02769842,237.7,237.67,4.2072]
[1738336029725,0.02769842,237.7,237.66,0.02667129]
[1738336030223,0.02769842,237.7,237.66,4.23397129]
[1738336030724,0.02769842,237.7,237.66,0.02667129]
[1738336032819,4.23449842,237.7,237.66,0.02667129]
[1738336033021,0.02769842,237.7,237.66,0.02667129]
[1738336035423,0.02769842,237.7,237.5,175.49670872]
[1738336035424,18.36084303,237.69,237.5,175.49670872]
[1738336035626,1.3696,237.68,237.5,175.49670872]
[1738336036023,4.2073,237.67,237.59,4.2086]
[1738336036225,18.36084303,237.73,237.52,18.36084303]
[1738336036425,18.36084303,237.73,237.56,18.36084303]
[1738336036629,0.0283412,237.65,237.64,4.2076]
[1738336036820,1.3696,237.75,237.6,18.36084303]
[1738336037128,8.4064,237.9,237.72,4.2064]
[1738336037129,2.84,237.83,237.72,4.2064]
[1738336037324,1.3618,237.83,237.72,4.2064]
[1738336037527,1.3618,237.83,237.64,18.36084303]
[1738336037724,4.2054,237.78,237.71,4.2065]
[1738336038027,1.3618,237.83,237.64,18.36084303]
[1738336038227,0.03016223,237.77,237.72,0.02777474]
[1738336038728,0.03016223,237.77,237.73,4.2061]
[1738336039229,0.03016223,237.77,237.74,4.206]
[1738336039528,0.03016223,237.77,237.72,0.02777474]
[1738336039827,0.03016223,237.77,237.72,18.38861777]
[1738336040027,4.2041,237.86,237.72,18.38861777]
[1738336040223,4.2924,237.91,237.76,18.36084303]
[1738336040623,4.2036,237.88,237.79,4.205]
[1738336041024,4.2924,237.91,237.79,4.205]
[1738336041219,4.2035,237.88,237.81,0.02791959]
[1738336041426,0.02664128,237.86,237.81,0.02791959]
[1738336042421,0.02664128,237.86,237.81,4.23261959]
[1738336042726,0.02664128,237.86,237.81,0.02791959]
[1738336043929,0.02664128,237.86,237.85,4.2041]
[1738336044828,0.02664128,237.86,237.81,0.02791959]
[1738336045431,0.02664128,237.86,237.85,4.2041]
[1738336047325,1.4563,237.97,237.9,4.2031]
[1738336047524,1.4563,237.97,237.8,18.36084303]
[1738336048232,18.36084303,237.96,237.77,116.62328859]
[1738336048426,21.09864303,237.96,237.86,0.0300573]
[1738336048731,4.2037,237.87,237.86,0.0300573]
[1738336049128,0.030565,237.91,237.86,0.0300573]
[1738336050835,0.030565,237.91,237.86,4.2337573]
[1738336051034,0.030565,237.91,237.86,0.0300573]
[1738336051427,4.2036,237.88,237.86,0.0300573]
[1738336051828,0.030565,237.91,237.86,0.0300573]
[1738336053139,4.2034,237.89,237.86,0.0300573]
[1738336054944,4.2036,237.88,237.86,0.0300573]
[1738336055339,0.030565,237.91,237.86,0.0300573]
[1738336055539,4.2037,237.87,237.86,0.0300573]
[1738336055743,18.36084303,237.88,237.74,1.4122]
[1738336055941,18.36084303,237.88,237.77,4.2054]
[1738336056641,18.36084303,237.88,237.74,1.4122]
[1738336056843,0.0316699,237.85,237.8,0.03182737]
[1738336057040,4.2048,237.81,237.8,0.03182737]
[1738336057241,0.0316699,237.85,237.8,0.03182737]
[1738336057845,0.0316699,237.85,237.84,4.2042]
[1738336058848,0.0316699,237.85,237.8,0.03182737]
[1738336061145,0.0316699,237.85,237.8,18.3926704]
[1738336061447,0.0316699,237.85,237.84,4.2042]
[1738336063552,1.3829,237.95,237.84,18.36084303]
[1738336063850,91.8697138,238.0,237.84,18.36084303]
[1738336064151,4.35683,237.98,237.91,4.2028]
[1738336064353,0.15493,237.98,237.91,4.2028]
[1738336064854,0.02733837,237.97,237.92,0.03044482]
[1738336065454,4.2023,237.96,237.92,0.03044482]
[1738336065849,0.02733837,237.97,237.92,0.03044482]
[1738336066050,0.02733837,237.97,237.94,4.2025]
[1738336066352,0.02733837,237.97,237.92,0.03044482]
[1738336067351,0.02733837,237.97,237.92,4.23324482]
[1738336069559,0.02733837,237.97,237.92,0.03044482]
[1738336070360,4.2023,237.96,237.92,0.03044482]
[1738336070764,0.02733837,237.97,237.92,0.03044482]
[1738336071762,4.22933837,237.97,237.92,4.23324482]
[1738336072561,4.2022,237.96,237.92,0.03044482]
[1738336072757,0.02733837,237.97,237.92,0.03044482]
[1738336073567,4.2027,237.93,237.92,0.03044482]
[1738336073759,4.2027,237.93,237.88,4.2035]
[1738336074365,0.02733837,237.97,237.88,4.2035]
[1738336074566,11.45321345,237.96,237.88,4.2035]
[1738336074966,11.45321345,237.96,237.9,0.03234043]
[1738336075467,11.45321345,237.96,237.78,116.62328859]
[1738336075468,11.45321345,237.9,237.78,116.62328859]
[1738336075668,11.45321345,237.87,237.78,116.62328859]
[1738336075866,1.3303,237.89,237.78,116.62328859]
[1738336076065,1.3303,237.89,237.82,4.2046]
[1738336076271,1.3303,237.89,237.78,116.62328859]
[1738336076568,11.45321345,237.84,237.83,0.02893393]
[1738336076769,11.45321345,237.84,237.78,116.62328859]
[1738336077072,11.45321345,237.81,237.78,112.22448859]
[1738336077364,4.2051,237.79,237.78,112.22448859]
[1738336077865,4.205,237.8,237.76,0.03166968]
[1738336078070,11.48352512,237.81,237.76,0.03166968]
[1738336078469,4.2057,237.76,237.71,4.2065]
[1738336078671,21.19307305,237.8,237.7,112.22448859]
[1738336079071,4.2059,237.75,237.7,112.22448859]
[1738336079268,21.19307305,237.8,237.7,112.22448859]
[1738336079469,0.02844284,237.77,237.73,0.02949673]
[1738336079665,4.206,237.74,237.73,0.02949673]
[1738336080173,4.2067,237.7,237.64,4.2076]
[1738336080470,1.4551,237.73,237.58,145.19506919]
[1738336081173,1.4551,237.73,237.56,175.2893124]
[1738336081174,18.35307305,237.68,237.56,175.2893124]
[1738336081370,4.2082,237.62,237.56,179.4985124]
[1738336081673,4.2082,237.62,237.6,0.03075821]
[1738336081870,0.02706694,237.61,237.6,0.03075821]
[1738336082065,4.208,237.63,237.6,0.03075821]
[1738336082270,0.02660179,237.63,237.6,0.03075821]
[1738336083073,0.02660179,237.63,237.56,175.2893124]
[1738336083469,4.2082,237.62,237.51,175.2893124]
[1738336083667,0.02660179,237.63,237.49,18.35307305]
[1738336083868,21.19307305,237.68,237.45,77.23431201]
[1738336084068,4.2086,237.6,237.45,77.23431201]
[1738336084270,0.02704945,237.59,237.55,0.03202345]
[1738336084670,18.35307305,237.64,237.55,0.03202345]
[1738336084671,4.2086,237.6,237.55,0.03202345]
[1738336084870,0.02966129,237.59,237.55,0.03202345]
[1738336085273,0.02966129,237.59,237.56,4.2092]
[1738336085476,0.02966129,237.59,237.55,0.03202345]
[1738336085877,0.02966129,237.59,237.58,4.2088]
[1738336087873,2.84,237.69,237.64,4.2078]
[1738336088176,1.3883,237.72,237.57,18.35307305]
[1738336088768,5.5947,237.72,237.66,4.2074]
[1738336088969,0.03051787,237.67,237.62,0.0276867]
[1738336089777,0.03051787,237.67,237.66,4.2074]
[1738336090579,2.8,237.82,237.65,18.35307305]
[1738336090775,5.64,237.82,237.65,18.35307305]
[1738336091683,0.03154867,237.76,237.74,4.206]
[1738336091980,0.03154867,237.76,237.71,0.02988044]
[1738336092782,0.03154867,237.76,237.73,4.2061]
[1738336092972,0.03154867,237.76,237.71,0.02988044]
[1738336093876,18.38462172,237.76,237.71,0.02988044]
[1738336094076,1.4011,237.75,237.71,0.02988044]
[1738336094273,1.4011,237.75,237.63,4.208]
[1738336094478,1.4011,237.75,237.56,2.8309]
[1738336094479,18.35307305,237.72,237.56,2.8309]
[1738336094681,4.207,237.69,237.61,4.2081]
[1738336095079,21.19307305,237.72,237.56,2.8309]
[1738336095275,2.84,237.72,237.66,4.2074]
[1738336095773,0.02969499,237.71,237.66,4.2074]
[1738336096180,0.02969499,237.71,237.67,4.2072]
[1738336096379,0.02969499,237.71,237.62,0.03126758]
[1738336096380,0.02969499,237.71,237.64,18.35307305]
[1738336096680,0.02969499,237.71,237.7,4.2067]
[1738336096876,0.02969499,237.71,237.64,18.35307305]
[1738336097084,0.02969499,237.71,237.68,0.03023824]
[1738336097883,0.02969499,237.71,237.69,4.2069]
[1738336098285,0.02969499,237.71,237.7,4.2067]
[1738336099184,0.02969499,237.71,237.68,0.03023824]
[1738336099389,0.02969499,237.71,237.69,4.2069]
[1738336099786,0.02969499,237.71,237.68,0.03023824]
[1738336100291,4.2069,237.7,237.68,0.03023824]
[1738336100489,18.38276804,237.71,237.68,0.03023824]
[1738336100689,18.38276804,237.71,237.56,2.8309]
[1738336100892,1.3286,237.7,237.56,2.8309]
[1738336101193,1.3286,237.7,237.56,1.4146]
[1738336101391,2.7667,237.7,237.52,18.35307305]
[1738336101584,2.84,237.69,237.52,18.35307305]
[1738336101783,0.03013005,237.63,237.59,0.03054261]
[1738336102686,4.2084,237.61,237.59,0.03054261]
[1738336103195,2.87013005,237.63,237.59,0.03054261]
[1738336103393,4.2085,237.6,237.59,0.03054261]
[1738336103988,2.87013005,237.63,237.53,4.2096]
[1738336104190,4.209,237.58,237.53,4.2096]
[1738336104391,2.84,237.63,237.44,134.09888408]
[1738336105396,0.03065626,237.56,237.44,134.09888408]
[1738336105597,0.03065626,237.56,237.44,115.74581103]
[1738336105796,0.03065626,237.56,237.48,4.2105]
[1738336106095,4.2096,237.54,237.44,115.74581103]
[1738336106294,4.2096,237.54,237.49,4.2104]
[1738336106489,0.03065626,237.56,237.44,115.74581103]
[1738336106692,0.03065626,237.56,237.45,4.2111]
[1738336107095,0.03065626,237.56,237.44,115.74581103]
[1738336107897,18.35307305,237.54,237.44,115.74581103]
[1738336108293,4.2112,237.45,237.44,115.74581103]
[1738336108493,2.84,237.5,237.44,115.74581103]
[1738336108696,0.02953819,237.47,237.44,115.74581103]
[1738336108899,0.02953819,237.47,237.46,4.211]
[1738336109292,0.02953819,237.47,237.39,291.03512343]
[1738336110597,0.02953819,237.47,237.4,18.35307305]
[1738336110899,0.02953819,237.47,237.46,4.211]
[1738336111289,0.02953819,237.47,237.39,291.03512343]
[1738336111486,0.02953819,237.47,237.44,4.2113]
[1738336111993,0.02953819,237.47,237.39,291.03512343]
[1738336112193,0.02953819,237.47,237.46,4.211]
[1738336114391,18.35307305,237.67,237.43,18.35307305]
[1738336114698,4.2087,237.59,237.48,18.35307305]
[1738336115395,1.3774,237.62,237.51,0.03196626]
[1738336115596,0.03046718,237.56,237.51,0.03196626]
[1738336116094,2.7563,237.67,237.52,18.35307305]
[1738336116298,1.3694,237.67,237.52,18.35307305]
[1738336117099,4.2076,237.65,237.52,18.35307305]
[1738336117500,0.02678426,237.62,237.57,0.026768]
[1738336118805,4.2084,237.61,237.57,0.026768]
[1738336119003,0.02678426,237.62,237.57,0.026768]
[1738336119496,4.2087,237.59,237.57,0.026768]
[1738336119699,0.02678426,237.62,237.57,0.026768]
[1738336119893,18.35307305,237.59,237.48,115.74581103]
[1738336120199,18.35307305,237.55,237.48,115.74581103]
[1738336120796,18.35307305,237.59,237.48,115.74581103]
[1738336120999,4.2096,237.54,237.53,0.02875722]
[1738336121202,2.84,237.54,237.42,115.74581103]
[1738336121396,18.35307305,237.51,237.42,115.74581103]
[1738336121900,4.2111,237.46,237.42,115.74581103]
[1738336122296,0.02673336,237.46,237.42,115.74581103]
[1738336123299,0.02673336,237.46,237.45,4.2112]
[1738336123495,0.02673336,237.46,237.42,115.74581103]
[1738336123692,0.02673336,237.46,237.43,4.2113]
[1738336123898,0.02673336,237.46,237.37,1.358]
[1738336124903,0.02673336,237.46,237.45,4.2112]
[1738336125103,2.84,237.57,237.4,18.35307305]
[1738336125811,4.2096,237.54,237.4,18.35307305]
[1738336126311,0.0296272,237.49,237.45,0.02901325]
[1738336126913,0.0296272,237.49,237.48,4.2106]
[1738336129820,4.2087,237.59,237.45,0.02901325]
[1738336130018,5.5871,237.62,237.45,1.3853]
[1738336130427,5.5871,237.62,237.49,4.2104]
[1738336130610,18.35307305,237.59,237.42,115.74581103]
[1738336130814,4.2099,237.52,237.42,115.74581103]
[1738336131116,0.02980252,237.53,237.48,0.02885904]
[1738336131317,4.23950252,237.53,237.48,0.02885904]
[1738336131517,0.02980252,237.53,237.48,4.23935904]
[1738336131719,0.02980252,237.53,237.48,0.02885904]
[1738336132818,0.02980252,237.53,237.5,4.2102]
[1738336133013,0.02980252,237.53,237.48,0.02885904]
[1738336133916,0.02980252,237.53,237.5,4.2101]
[1738336134712,0.02980252,237.53,237.51,4.2101]
[1738336134912,0.02980252,237.53,237.48,0.02885904]
[1738336136316,0.02980252,237.53,237.52,4.2099]
[1738336137514,4.2083,237.61,237.56,4.2092]
[1738336137913,1.3389,237.62,237.49,1.4483]
[1738336138113,18.35307305,237.61,237.51,4.2099]
[1738336138312,18.35307305,237.61,237.44,115.74581103]
[1738336138720,4.2096,237.54,237.5,0.03201256]
[1738336139112,0.02786324,237.55,237.5,0.03201256]
[1738336140318,0.02786324,237.55,237.54,4.2096]
[1738336140721,0.02786324,237.55,237.5,0.03201256]
[1738336140922,0.02786324,237.55,237.52,4.2099]
[1738336141324,0.02786324,237.55,237.5,0.03201256]
[1738336141524,0.02786324,237.55,237.53,4.2097]
[1738336142227,0.02786324,237.55,237.54,4.2096]
[1738336143227,0.02786324,237.55,237.53,4.2097]
[1738336143920,0.02786324,237.55,237.5,0.03201256]
[1738336145126,0.02786324,237.55,237.54,4.2096]
[1738336145527,2.84,237.67,237.6,4.2083]
[1738336145729,2.84,237.67,237.52,18.35307305]
[1738336146228,4.2079,237.64,237.58,4.2088]
[1738336146728,0.02830124,237.63,237.59,0.02670167]
[1738336146926,0.02830124,237.63,237.59,4.23530167]
[1738336147130,0.02830124,237.63,237.59,0.02670167]
[1738336148931,0.02830124,237.63,237.62,4.2081]
[1738336149126,2.84,237.78,237.6,19.81157305]
[1738336149324,2.84,237.78,237.64,18.35307305]
[1738336150034,4.2058,237.76,237.69,4.2067]
[1738336150331,4.2058,237.76,237.69,4.23654881]
[1738336150332,0.02907456,237.73,237.69,4.23654881]
[1738336150827,0.02907456,237.73,237.7,4.2067]
[1738336151232,0.02907456,237.73,237.69,0.02984881]
[1738336151933,0.02907456,237.73,237.72,4.2064]
[1738336154429,4.3033,237.89,237.8,4.2049]
[1738336154635,4.3033,237.89,237.72,18.35307305]
[1738336154636,1.4633,237.89,237.72,18.35307305]
[1738336154831,87.544,237.86,237.72,18.35307305]
[1738336155032,83.34,237.86,237.72,18.35307305]
[1738336155631,0.02876045,237.81,237.77,0.02962838]
[1738336156633,4.23356045,237.81,237.77,0.02962838]
[1738336156833,0.02876045,237.81,237.77,0.02962838]
[1738336157235,0.02876045,237.81,237.8,4.205]
[1738336157836,0.02876045,237.81,237.77,0.02962838]
[1738336158639,0.02876045,237.81,237.8,4.205]
[1738336159535,0.02876045,237.81,237.77,0.02962838]
[1738336160235,4.23366045,237.81,237.77,0.02962838]
[1738336160733,0.02876045,237.81,237.77,0.02962838]
[1738336160930,18.3818335,237.81,237.61,115.74581103]
[1738336161136,18.35307305,237.77,237.61,115.74581103]
[1738336161338,4.2065,237.72,237.65,4.2076]
[1738336161535,1.4355,237.76,237.61,115.74581103]
[1738336162036,4.2067,237.71,237.66,0.02945785]
[1738336162338,0.02765433,237.71,237.66,0.02945785]
[1738336164341,0.02765433,237.71,237.66,4.23685785]